Cogmind - Beta 13 @@@ ROGUE MODE // 2024.07.23 @ 02:03:43 Player: jagoly Result: Destroyed by S-43 Plague with Heavy Machine Gun Performance ------------- Evolutions (9) 4500 Regions Visited (28) 5600 Robots Destroyed (389) 1945 Value Destroyed (16463) 16463 Prototype IDs (74) 1480 Alien Tech Used (5) 1000 Bonus (13309) 13309 TOTAL SCORE: 44297 Bonus ------- High Alert Combat Kills 1747 Follower Combat Kills 3024 Entered Garrisons 200 Network Hubs Disabled 200 Met Imprinter 300 Was Imprinted 300 Acquired ECA 300 Met Zhirov 300 Built Enhanced Grunts 300 A7 Reached Mainframe 300 Met R17 at Cetus 500 Found Hidden Lab 3000 Used Core Reset Matrix 3000 Pursued by Intercept 500 Friendly Fire -662 Cogmind --------- Core Integrity 0/1600 Matter 160/300 Energy 89/100 System Corruption 14% Temperature Cool (0) Movement Core (50) Location -1/Command Parts ------- > --- POWER (3) -------- (None) > --- PROPULSION (10) -- Armored Medium Treads Advanced Medium Treads Advanced Medium Treads Advanced Medium Treads Gyrokinetic Inverter Gyrokinetic Inverter > --- UTILITY (10) ----- Improved Targeting Computer Quantum Router > --- WEAPON (3) ------- (None) > --- INVENTORY (5) ---- Light Quantum Reactor Advanced Matter Compressor (400) Enhanced Quantum Rifle Fusion Bomb Launcher Force Lance Peak State ------------ > --- POWER ------------ Light Antimatter Reactor Light Antimatter Reactor Light Quantum Reactor > --- PROPULSION ------- Improved Antigrav System Improved Antigrav System Improved Gyrokinetic Inverter Improved Gyrokinetic Inverter Improved Linear Gravjet Improved Linear Gravjet Improved Linear Gravjet Improved Linear Gravjet Cooled Linear Gravjet > --- UTILITY ---------- Advanced Heat Sink Large Storage Unit Improved Melee Analysis Suite Centrium Light Armor Plating Centrium Light Armor Plating Experimental Focal Shield Advanced Thermal Shield AEGIS Remote Shield Quantum Router > --- WEAPON ----------- Gamma Rifle Enhanced Quantum Rifle Power Sword > --- INVENTORY -------- Improved Ion Engine Improved Linear Gravjet Zionite Biocell Advanced Matter Compressor Particle Accelerator Advanced Transmission Jammer Advanced Cloaking Device Improved Shock Absorption System Experimental EM Disruption Field Compact HERF Cannon Potential Cannon Advanced Micro-nuke Launcher Plasma Cutter [Rating: 185] Favorites ----------- Power Quantum Reactor Engine Angular Momentum Engine Power Core Neutrino Core Reactor Quantum Reactor Propulsion Light Treads Treads Light Treads Leg VSS Leg Wheel Wheel Hover Unit Antigrav Array Utility Improved Targeting Computer Device Experimental Heat Sink Storage Large Storage Unit Processor Improved Targeting Computer Hackware Hacking Suite Protection Centrium Medium Armor Plating Weapon Advanced KE Penetrator Energy Gun Improved Spread Laser Energy Cannon Advanced Beam Cannon Ballistic Gun Advanced KE Penetrator Ballistic Cannon Linear Accelerator Launcher Advanced Micro-nuke Launcher Special Weapon Plasma Cutter Impact Weapon Flail Slashing Weapon Power Sword Piercing Weapon Plasma Lance Build | -11 -10 -10 -9 -9 -9 -9 -7 -7 -7 -7 -6 -6 -6 -6 -6 -6 -5 -5 -5 -5 -4 -4 -3 -3 -3 -2 -1 -1 ------- Run | Yrd Mat Min Mat Sto Gar Rec Fac Low Low Zio Pro Fac Ext Cet Arc Hub Fac Upp Upp Zhi Pro Fac Res Arm Lab Res Acc Com Slots Evolved 18 | . . . 2 . . . 4 . . . . 2 . . . . 2 . . . . 2 2 . . 2 2 . Power 1 | . . . . . . . . . . . . 1 . . . . . . . . . . . . . . . . Propulsion 8 | . . . 1 . . . 2 . . . . . . . . . 1 . . . . 1 1 . . 1 1 . Utility 8 | . . . 1 . . . 2 . . . . 1 . . . . 1 . . . . 1 . . . 1 1 . Weapon 1 | . . . . . . . . . . . . . . . . . . . . . . . 1 . . . . . Parts Attached 648 | 6 20 3 24 41 11 5 48 10 7 7 3 43 54 18 16 9 30 7 1 11 3 60 26 48 9 68 31 29 Power 81 | 1 4 1 2 6 1 . 5 . 1 1 . 6 6 3 3 . 2 . . 2 . 9 2 4 . 14 4 4 Engine 32 | 1 4 1 2 6 1 . 4 . . . . 1 4 . . . 1 . . 1 . . . . . 4 2 . Core 18 | . . . . . . . 1 . 1 1 . 5 1 1 2 . . . . . . 5 . . . 1 . . Reactor 31 | . . . . . . . . . . . . . 1 2 1 . 1 . . 1 . 4 2 4 . 9 2 4 Propulsion 175 | 2 10 1 11 13 5 3 11 4 2 1 . 7 17 4 2 . 4 . . 3 . 23 5 13 . 13 10 11 Treads 73 | . 2 1 9 13 5 3 4 . . . . 1 13 3 2 . 4 . . 2 . 1 . . . . 2 8 Leg 35 | 2 8 . . . . . 7 4 2 1 . 6 2 1 . . . . . 1 . . . . . . 1 . Wheel 5 | . . . . . . . . . . . . . 1 . . . . . . . . . 2 . . . . 2 Hover 62 | . . . 2 . . . . . . . . . 1 . . . . . . . . 22 3 13 . 13 7 1 Flight . | . . . . . . . . . . . . . . . . . . . . . . . . . . . . . Utility 233 | 1 4 1 7 5 1 2 15 1 2 . 3 13 16 2 11 4 19 6 1 4 1 23 15 18 5 32 11 10 Device 155 | . 1 . . 2 1 1 11 1 1 . . 7 10 . 6 2 15 6 1 3 1 17 13 18 5 24 6 3 Storage 17 | 1 1 . . . . . 1 . . . . 1 2 . . . . . . . . 3 . . . 3 3 2 Processor 12 | . . . 1 1 . . 1 . . . 1 . . . 1 . . . . . . 1 1 . . 2 1 2 Hackware 9 | . . . 1 . . 1 1 . . . . 1 . . . . 1 . . . . 1 . . . 1 1 1 Protection 40 | . 2 1 5 2 . . 1 . 1 . 2 4 4 2 4 2 3 . . 1 . 1 1 . . 2 . 2 Artifact . | . . . . . . . . . . . . . . . . . . . . . . . . . . . . . Weapon 159 | 2 2 . 4 17 4 . 17 5 2 5 . 17 15 9 . 5 5 1 . 2 2 5 4 13 4 9 6 4 Energy Gun 46 | 1 . . 2 11 . . 6 2 1 1 . 7 2 1 . . . . . . . . 1 2 . 5 3 1 Energy Cannon 19 | . . . . . 3 . 2 . . . . 2 5 . . . 1 . . . . 2 . . . 1 2 1 Ballistic Gun 48 | 1 2 . 2 2 . . 5 2 1 1 . 4 4 7 . 5 3 1 . 1 1 2 . 3 1 . . . Ballistic Cannon 9 | . . . . . . . 1 . . . . 1 . . . . . . . . . . 2 3 2 . . . Launcher 11 | . . . . 1 . . 1 1 . . . 1 . . . . . . . . 1 . 1 1 . 2 1 1 Special Weapon 10 | . . . . . 1 . . . . . . 1 4 1 . . . . . 1 . . . 1 1 . . . Impact Weapon 6 | . . . . 3 . . 2 . . . . 1 . . . . . . . . . . . . . . . . Slashing Weapon 7 | . . . . . . . . . . 3 . . . . . . . . . . . 1 . 2 . 1 . . Piercing Weapon 3 | . . . . . . . . . . . . . . . . . 1 . . . . . . 1 . . . 1 Special Melee Weapon . | . . . . . . . . . . . . . . . . . . . . . . . . . . . . . Unidentified Prototypes 64 | . 1 . 2 3 . . 7 . . . . 6 6 5 . 2 1 . . 5 . 3 4 4 3 8 4 . Corrupted Parts 3 | . . . . . . 1 . . . . . . . . 2 . . . . . . . . . . . . . System Corruption 14 | . . . . . . 1 . . . . . . . . 13 . . . . . . . . . . . . . Parts Lost 139 | . 3 . 1 2 7 . 3 3 7 . . 11 7 . . 1 2 2 . . 2 12 1 16 4 19 25 11 Power 17 | . . . . . 1 . 1 . 1 . . 2 1 . . . . . . . . 1 . 1 1 4 3 1 Propulsion 57 | . 2 . . . 3 . 2 2 3 . . 5 2 . . . . . . . 1 6 . 6 2 8 9 6 Utility 45 | . 1 . . 1 1 . . 1 2 . . 2 3 . . . 2 1 . . 1 3 1 6 1 5 10 4 Weapon 20 | . . . 1 1 2 . . . 1 . . 2 1 . . 1 . 1 . . . 2 . 3 . 2 3 . Highest Loss Streak 19 | . 2 . 1 1 6 . 2 2 6 . . 4 5 . . 1 1 1 . . 1 5 1 11 4 19 13 7 To Critical Strikes 4 | . . . . . 1 . . . . . . . . . . . . . . . . . . . . . 1 2 Average Slot Usage (%) 91 | . 96 100 99 99 98 100 99 98 87 99 100 96 99 86 84 85 82 87 88 86 84 93 92 88 63 69 34 49 Engine 5 | . 14 14 11 10 10 11 6 7 3 . . . 4 . . . 3 5 5 4 5 . . . . 2 1 . Core 2 | . . . . . . . . . 3 7 7 10 5 6 5 6 2 . . . . 4 . . . . . . Reactor 2 | . . . . . . . . . . . . . 2 5 6 6 3 5 5 5 5 4 8 9 8 5 . 7 Treads 15 | . 1 28 32 33 31 33 11 . . . . 1 22 20 20 20 17 23 23 22 19 1 . . . . 1 7 Leg 9 | . 25 . . . . . 26 36 29 37 38 30 9 . . . . . . . . . . . . . . . Hover 3 | . . . . . . . . . . . . . . . . . . . . . . 29 30 27 16 17 8 9 Device 13 | . 5 . . 3 10 11 20 14 11 7 7 12 15 13 15 14 17 27 29 27 28 24 19 25 24 19 3 1 Storage 7 | . 14 14 11 11 11 11 7 7 7 7 7 6 6 6 6 6 5 5 5 5 5 5 4 4 4 4 4 1 Processor 5 | . . . . 7 11 11 7 7 7 7 7 6 6 6 7 6 5 5 5 5 5 6 2 . . 2 3 5 Hackware 2 | . . . 9 3 . . . 7 7 7 7 6 . . . . 3 . . . . 4 4 4 . 2 5 4 Protection 5 | . 6 14 12 7 . . 1 . . 7 6 5 9 13 8 11 5 1 . . . . 4 1 . 4 . . Energy Gun 3 | . 1 . 9 14 1 . 3 10 9 6 7 4 3 . . . . . . . . . . 1 . 3 1 1 Energy Cannon 2 | . . . . . 20 22 7 . . . . 2 5 . . . . . . . . 2 . . . . . 2 Ballistic Gun 7 | . 26 28 12 7 . . 3 3 5 6 7 4 3 12 13 12 10 11 11 10 10 7 4 2 1 . . . Naked Turns . | . . . . . . . . . . . . . . . . . . . . . . . . . . . . . Heaviest Build 114 | 10 34 34 38 40 37 37 44 43 43 47 63 71 99 105 101 108 110 110 108 108 108 105 99 107 87 102 59 114 Greatest Support 240 | 20 40 40 60 60 60 60 100 51 54 74 74 79 128 180 180 180 240 206 206 217 217 167 98 99 74 102 160 187 Greatest Overweight (x) 7 | . 5 . . . 1 . 3 1 1 . . 1 5 . . . . . . . . 2 1 1 1 1 3 7 Average Overweight (x) . | . . . . . . . . . . . . . . . . . . . . . . . . . . . . . Largest Inventory Capacity 25 | 8 15 15 15 15 15 15 15 15 15 15 15 15 20 20 20 20 20 20 20 20 20 20 15 15 15 15 25 20 Average Capacity 16 | 6 8 15 15 15 15 15 15 15 15 15 15 15 17 20 20 20 20 20 20 20 20 19 15 15 15 15 11 8 Most Carried 20 | 3 8 13 15 15 15 15 15 15 15 15 15 15 20 20 20 20 20 20 20 20 20 20 15 15 13 15 15 6 Average Carried 15 | 1 7 9 14 14 11 13 14 14 13 14 15 14 16 19 19 19 19 18 19 19 19 19 14 14 10 14 10 4 Final Capacity 20 | 8 15 15 15 15 15 15 15 15 15 15 15 15 20 20 20 20 20 20 20 20 20 15 15 15 15 15 5 5 Final Carried 20 | 3 8 12 14 15 12 14 15 15 11 15 15 15 20 20 19 20 20 19 20 20 19 15 15 12 13 15 5 5 Class Distribution -------------------- 53% | Scavenger-Mutant 27% | Mutant 4% | Hacker-Mutant 4% | Messiah-Mutant 3% | Commander-Mutant Dominant Class ---------------- Mutant | -10/Materials Mutant | -10/Mines Scavenger-Mutant | -9/Materials Mutant | -9/Storage Scavenger-Mutant | -9/Garrison Commander-Mutant | -9/Recycling Mutant | -7/Factory Mutant | -7/Lower Caves Mutant | -7/Lower Caves Scavenger-Mutant | -7/Zion Mutant | -6/Proximity Caves Mutant | -6/Factory Messiah-Mutant | -6/Extension Scavenger-Mutant | -6/Cetus Scavenger-Mutant | -6/Archives Scavenger-Mutant | -6/Hub_04(d) Scavenger-Mutant | -5/Factory Scavenger-Mutant | -5/Upper Caves Scavenger-Mutant | -5/Upper Caves Scavenger-Mutant | -5/Zhirov Scavenger-Mutant | -4/Proximity Caves Scavenger-Mutant | -4/Factory Messiah-Sprinter | -3/Research Scavenger-Sprinter | -3/Armory Alien-Mutant | -3/Lab Alien-Mutant | -2/Research Hacker-Mutant | -1/Access Hacker-Mutant | -1/Command Resources | -11 -10 -10 -9 -9 -9 -9 -7 -7 -7 -7 -6 -6 -6 -6 -6 -6 -5 -5 -5 -5 -4 -4 -3 -3 -3 -2 -1 -1 ----------- Run | Yrd Mat Min Mat Sto Gar Rec Fac Low Low Zio Pro Fac Ext Cet Arc Hub Fac Upp Upp Zhi Pro Fac Res Arm Lab Res Acc Com Matter Collected 11649 | 121 398 338 498 707 130 64 564 233 165 74 46 735 694 187 206 191 740 431 66 120 264 1407 235 886 119 1234 409 387 Remotely . | . . . . . . . . . . . . . . . . . . . . . . . . . . . . . Salvage Created 17171 | . 502 163 918 1817 810 227 735 338 443 . 9 1058 1361 . 311 . 1691 592 287 152 944 1258 105 563 . 1540 719 628 Parts 794 | . 28 5 78 110 38 7 40 11 12 . 1 44 51 . 28 . 81 27 . . 24 56 3 25 . 69 30 26 Haulers Intercepted 18 | . 1 . 3 5 . . 3 . . . . 1 . . . . . . . . . 3 . . . 1 1 . Recyclers Shooed 20 | . . . 1 10 . 2 1 . . . . . 1 . . . 2 . 1 . . 1 . . . 1 . . Parts Field Recycled . | . . . . . . . . . . . . . . . . . . . . . . . . . . . . . Retrieved Matter . | . . . . . . . . . . . . . . . . . . . . . . . . . . . . . Parts Self-Destructed 77 | . . . . . . . . 14 15 . 2 . . . . . . 29 . . 17 . . . . . . . Prevented 2 | . . . . . . . . . . . . . . . . . . 1 . . 1 . . . . . . . Kills | -11 -10 -10 -9 -9 -9 -9 -7 -7 -7 -7 -6 -6 -6 -6 -6 -6 -5 -5 -5 -5 -4 -4 -3 -3 -3 -2 -1 -1 ------- Run | Yrd Mat Min Mat Sto Gar Rec Fac Low Low Zio Pro Fac Ext Cet Arc Hub Fac Upp Upp Zhi Pro Fac Res Arm Lab Res Acc Com Combat Hostiles Destroyed 299 | . 8 4 15 33 22 3 15 11 11 . 1 22 20 . . . 27 12 . . 19 17 1 10 . 28 14 6 Melee 13 | . . . . . . . . . . . . . . . . . . . . . . . 1 . . 12 . . Guns 178 | . 7 4 15 30 2 . 7 6 11 . 1 20 9 . . . 26 12 . . 7 13 . 1 . . 5 2 Cannons 53 | . . . . . 20 3 7 . . . . . 10 . . . 1 . . . . 3 . 8 . . 1 . AOE 49 | . 1 . . 3 . . . 5 . . . 1 . . . . . . . . 12 . . 1 . 16 8 2 Classes Destroyed 22 | . 6 . 3 2 1 1 2 . . . 1 1 1 . . . . . . . 1 . . 2 . 1 . . Worker 13 | . 1 . 4 3 . . 1 . . . . 1 . . . . . . . . . . . . . . . 3 Builder 5 | . . . . . . . 1 . . . . . . . . . . . . . . 2 . . . 2 . . Tunneler 2 | . . . . . . . . . . . . . . . . . . . . . . . . . . 2 . . Hauler 18 | . 1 . 3 5 . . 3 . . . . 1 . . . . . . . . . 3 . . . 1 1 . Recycler 19 | . 2 . 3 6 . 1 . . . . . . 1 . . . 2 . . . . . . . . 3 . 1 Mechanic 1 | . . . . . . . . . . . . . . . . . . . . . 1 . . . . . . . Operator 20 | . 3 . 1 . . . 1 . . . . . 2 . 9 . 2 . . . . 1 . . . . . 1 Drone 1 | . . . . . . . . . . . 1 . . . . . . . . . . . . . . . . . Watcher 15 | . 2 . 2 1 . . . . . . . 3 1 . . . 2 . . . . 2 . 2 . . . . Swarmer 83 | . . . 5 3 3 . 6 3 3 . . 5 3 . . . 10 5 . . 1 9 . 3 . 16 6 2 Grunt 96 | . 8 4 4 13 12 . 4 2 5 . . 5 5 . . . 4 2 . . 9 5 . 1 . 8 4 1 Brawler 11 | . . . . 1 . . . 3 1 . . . 3 . . . . . . . 2 . . . . . . 1 Duelist 8 | . . . 1 . . . . 2 . . . 2 . . . . 1 1 . . . . . . . . . 1 Protector 2 | . . . . 1 . . . . . . . . 1 . . . . . . . . . . . . . . . Sentry 48 | . . . 5 15 6 1 1 1 1 . . 3 6 . . . 4 1 . . 1 . 1 2 . . . . Specialist 1 | . . . . . 1 . . . . . . . . . . . . . . . . . . . . . . . Hunter 11 | . . . . . . . 2 . 1 . . 2 . . . . 3 2 . . . . . 1 . . . . Programmer 27 | . . . . . . 2 2 . . . . 1 . . . . 5 1 . . 5 3 . 1 . 2 4 1 Heavy 2 | . . . . . . . . . . . . . . . . . . . . . . . . 2 . . . . Behemoth 3 | . . . . . . . . . . . . . 2 . . . . . . . 1 . . . . . . . Tracker 2 | . . . . . . . . . . . . . . . . . . . . . . . . . . 2 . . Z-Light 1 | . . . . . . . . . . . . . . . . . . . . . . . . 1 . . . . Packrat 3 | . . . . . . . . . . . . . . . . . . . 3 . . . . . . . . . Assembled 4 | . . . . . . . . . . . . 4 . . . . . . . . . . . . . . . . Best Kill Streak 11 | . 7 2 4 7 4 2 4 5 7 . 1 5 3 . 8 . 5 5 . . 9 6 1 4 . 11 8 4 Combat Bots Only 11 | . 3 2 3 7 4 2 3 5 7 . 1 5 3 . . . 5 5 . . 9 5 1 3 . 11 8 3 Max Kills in Single Turn 6 | . 4 1 1 2 1 1 2 2 1 . 1 2 1 . 1 . 3 1 1 . 3 2 1 1 . 4 6 2 Gunslinging 1 | . . . . . . . . 1 . . . 1 . . . . 1 . . . . 1 . . . . . . Exploded 6 | . 1 . . 2 . . . 2 . . . 1 . . . . . . . . 3 . . 1 . 4 6 2 Melee 1 | . . . . . . . . . . . . . . . . . . . . . . . 1 . . 1 . . Uniques/NPCs Destroyed . | . . . . . . . . . . . . . . . . . . . . . . . . . . . . . Combat | -11 -10 -10 -9 -9 -9 -9 -7 -7 -7 -7 -6 -6 -6 -6 -6 -6 -5 -5 -5 -5 -4 -4 -3 -3 -3 -2 -1 -1 -------- Run | Yrd Mat Min Mat Sto Gar Rec Fac Low Low Zio Pro Fac Ext Cet Arc Hub Fac Upp Upp Zhi Pro Fac Res Arm Lab Res Acc Com Hostile Shots Fired 2867 | . 39 17 58 110 117 20 102 37 60 . . 223 211 7 4 52 147 89 . . 52 228 32 220 76 387 381 198 Missed 942 | . 9 5 17 29 22 4 45 7 18 . . 70 72 5 1 15 26 15 . . 16 82 14 100 33 142 146 49 Damage Taken 30710 | . 519 161 513 1053 1232 239 777 495 697 . . 2003 2074 94 101 1278 1612 667 . . 709 2024 248 2010 335 3228 4950 3691 Core 3978 | . 30 17 51 107 215 14 76 122 36 . . 169 248 32 . 54 36 25 . . 70 184 56 262 31 524 1125 494 Absorbed by Shields 4457 | . 104 . . . . . 149 58 104 . . . 36 12 . . 503 506 . . 129 371 128 900 . 1388 . 69 Reduced by Siege Mode 640 | . . . . . . . . . . . . . . . . . 122 54 . . 47 . . . . . . 417 Redirected to Shielding 29 | . . . . . . . . . . . . . 29 . . . . . . . . . . . . . . . Ignored by Resistances 4277 | . . . . . . . . . . . . 202 89 6 4 20 123 212 . . 58 503 75 526 851 1213 379 16 Regen/Repaired (Parts) 744 | . . . . . . . . . . 604 . . . . . . . . . . . 140 . . . . . . Core Remaining (%) 65 | 100 . 81 . . . 3 . . . . 66 . . . . 40 . . . . 81 84 . . 67 63 . . Volleys Fired 955 | . 36 13 63 88 54 11 46 24 29 1 7 98 73 2 21 11 70 29 7 5 25 89 . 31 16 13 45 48 Largest 3 | . 2 2 2 2 2 2 2 2 2 1 2 2 2 2 2 2 2 2 2 1 2 2 . 3 3 1 1 2 Hottest 180 | . 46 46 88 130 136 136 150 150 150 25 100 180 180 65 70 70 125 70 70 20 70 125 . 167 167 65 94 159 Shots Fired 1731 | . 72 26 126 173 102 23 94 39 52 1 13 196 139 4 42 22 135 58 14 5 38 141 . 81 26 12 45 52 Gun 1312 | . 72 26 126 171 19 . 56 30 52 1 13 176 55 4 42 22 119 58 14 . 31 110 . 25 12 1 40 37 Cannon 377 | . . . . . 83 23 38 . . . . 20 84 . . . 16 . . . . 31 . 55 14 . 2 11 Launcher 37 | . . . . 2 . . . 9 . . . . . . . . . . . . 7 . . 1 . 11 3 4 Special 5 | . . . . . . . . . . . . . . . . . . . . 5 . . . . . . . . Kinetic 923 | . 72 26 72 61 . . 29 8 22 1 7 89 30 4 42 22 119 58 14 . 31 110 . 80 26 . . . Thermal 755 | . . . 54 110 102 23 65 22 30 . 6 107 109 . . . 16 . . 5 . 31 . . . 1 37 37 Explosive 37 | . . . . 2 . . . 9 . . . . . . . . . . . . 7 . . 1 . 11 3 4 Electromagnetic 16 | . . . . . . . . . . . . . . . . . . . . . . . . . . . 5 11 Robot Hit Streak 43 | . 6 4 11 22 15 7 16 7 24 . 1 34 15 7 12 13 21 24 10 14 25 8 . 14 4 8 15 43 Robot Miss Streak 27 | . 5 4 14 6 3 2 7 6 6 . 27 14 2 . 4 4 2 4 2 . 1 5 . 2 6 2 3 3 Penetration Max 1 | . . . . . . . . . . . . . 1 . 1 . 1 1 . . . 1 . . . . . . Secondary Targets 27 | . 2 1 2 1 . . . 1 3 . . 7 1 . . . 5 1 . . . 3 . . . . . . Max Gunslinging Chain 1 | . 1 1 1 1 . . . 1 1 . . 1 1 . . . 1 1 . . . 1 . . . . . . Shots Hit Robots 1371 | . 55 19 98 156 64 13 67 31 43 . 2 156 107 4 30 12 113 44 10 5 33 91 6 58 9 65 35 45 Core Hits 984 | . 33 9 83 191 48 3 51 41 45 . 1 99 63 1 16 5 51 19 3 3 45 41 3 26 2 59 23 20 Critical Kills 23 | . . . . . . . . . . . . . 3 . 5 . 9 3 . . 1 2 . . . . . . Critical Parts Destroyed 40 | . . 1 . 1 . . 1 . . . . . 2 . 4 2 11 6 3 . 3 6 . . . . . . Critical Strikes 79 | . . 1 . 1 . . 1 . . . . 2 5 . 9 2 22 10 3 . 4 9 1 5 . 3 1 . Burn 2 | . . . . . . . . . . . . 2 . . . . . . . . . . . . . . . . Meltdown 2 | . . . . . . . . . . . . . 1 . . . . . . . . 1 . . . . . . Destroy 65 | . . 1 . 1 . . 1 . . . . . 4 . 9 2 22 10 3 . 4 8 . . . . . . Blast 4 | . . . . . . . . . . . . . . . . . . . . . . . . 4 . . . . Corrupt 1 | . . . . . . . . . . . . . . . . . . . . . . . . . . . 1 . Sever 4 | . . . . . . . . . . . . . . . . . . . . . . . 1 . . 3 . . Impale 1 | . . . . . . . . . . . . . . . . . . . . . . . . 1 . . . . Melee Attacks 135 | . . . . 3 . . 1 . . 1 . . . . . . . . . . . 6 18 32 . 74 . . Impact 4 | . . . . 3 . . 1 . . . . . . . . . . . . . . . . . . . . . Slashing 113 | . . . . . . . . . . 1 . . . . . . . . . . . 6 18 14 . 74 . . Piercing 18 | . . . . . . . . . . . . . . . . . . . . . . . . 18 . . . . Sneak Attacks 11 | . . . . . . . . . . . . . . . . . . . . . . 2 1 1 . 7 . . Combat Hostiles 1 | . . . . . . . . . . . . . . . . . . . . . . . 1 . . . . . Follow-up Attacks . | . . . . . . . . . . . . . . . . . . . . . . . . . . . . . Damage Inflicted 42787 | . 1111 272 1298 2855 1321 356 1338 1027 846 . 26 3219 3091 95 985 319 3332 1309 352 58 3170 3158 264 2948 320 5699 1949 2069 Guns 22937 | . 753 264 1298 2399 380 . 825 440 846 . 26 2725 1167 95 985 319 2873 1309 352 . 920 2291 . 334 107 . 947 1282 Cannons 7543 | . . . . . 941 356 513 . . . . 415 1924 . . . 459 . . . . 570 . 1721 85 . 84 475 Explosions 8638 | . 358 . . 438 . . . 587 . . . 79 . . . . . . . . 2250 62 . 481 . 3153 918 312 Melee 3456 | . . . . . . . . . . . . . . . . . . . . . . 235 264 412 . 2545 . . Ramming 155 | . . 8 . 18 . . . . . . . . . . . . . . . . . . . . 128 1 . . Kinetic 16608 | . 753 264 793 887 . . 325 94 234 . 19 1239 609 95 985 319 2873 1309 352 . 920 2291 . 2055 192 . . . Thermal 13704 | . 358 . 505 1512 1321 356 1013 346 612 . 7 1901 2482 . . . 459 . . 58 . 632 . . . . 860 1282 Explosive 8218 | . . . . 438 . . . 587 . . . 79 . . . . . . . . 2250 . . 481 . 3153 918 312 Electromagnetic 646 | . . . . . . . . . . . . . . . . . . . . . . . . . . . 171 475 Impact . | . . . . . . . . . . . . . . . . . . . . . . . . . . . . . Slashing 3116 | . . . . . . . . . . . . . . . . . . . . . . 235 264 72 . 2545 . . Piercing 340 | . . . . . . . . . . . . . . . . . . . . . . . . 340 . . . . Highest Corruption 14 | . . . . 2 2 5 1 . . . . . . . 6 12 2 1 . . . 6 . 7 7 13 13 14 Average Corruption 3 | . . . . 2 2 3 1 . . . . . . . 4 5 1 1 . . . 2 . 2 1 5 9 13 Corruption Purged 24 | . . . . . . . 2 . . . . . . . 13 . 3 1 . . . 5 . . . . . . Corruption Blocked 21 | . . . . . . . . . . . . 4 . . . . . . . . . 2 . 15 . . . . Effects 114 | . . . . 11 13 12 5 . . . . . . . 2 2 2 2 . . . 19 . 9 1 5 10 21 Message Errors 30 | . . . . 4 5 2 . . . . . . . . 1 1 1 . . . . 4 . 3 . 1 6 2 Matter Fused 22 | . . . . 1 3 2 . . . . . . . . . . . . . . . 2 . 3 . 1 1 9 Heat Flow Errors 15 | . . . . 2 . 2 3 . . . . . . . 1 . 1 1 . . . 3 . 1 . . 1 . Energy Discharges 5 | . . . . . 1 1 . . . . . . . . . . . . . . . 1 . . . . 1 1 Parts Rejected 9 | . . . . 2 . 1 . . . . . . . . . 1 . . . . . 1 . . . 2 . 2 Parts Fused 1 | . . . . . . . . . . . . . . . . . . . . . . . . 1 . . . . Data Loss (minor) 12 | . . . . . 2 . . . . . . . . . . . . 1 . . . 5 . 1 . . 1 2 Data Loss (major) 5 | . . . . 1 1 1 . . . . . . . . . . . . . . . . . . 1 . . 1 Misfires 5 | . . . . . 1 2 2 . . . . . . . . . . . . . . . . . . . . . Misdirections 3 | . . . . . . . . . . . . . . . . . . . . . . . . . . . . 3 Weapon Failures 7 | . . . . 1 . 1 . . . . . . . . . . . . . . . 3 . . . 1 . 1 Overload Shots . | . . . . . . . . . . . . . . . . . . . . . . . . . . . . . Overflow Damage 799 | . 86 . . 10 . 22 1 . . . . . 19 . . . 49 . . . 53 3 . 79 . 299 72 106 Projectiles 167 | . . . . . . 22 1 . . . . . 19 . . . 49 . . . . 1 . 70 . . . 5 Explosions 389 | . 86 . . 10 . . . . . . . . . . . . . . . . 53 . . 9 . 58 72 101 Melee 243 | . . . . . . . . . . . . . . . . . . . . . . 2 . . . 241 . . Knockbacks 15 | . . . . . . . . . . . . . . . . . . . . . . . . 12 3 . . . Impact 1 | . . . . . . . . . . . . . . . . . . . . . . . . . 1 . . . Kinetic 13 | . . . . . . . . . . . . . . . . . . . . . . . . 11 2 . . . Secondary 1 | . . . . . . . . . . . . . . . . . . . . . . . . 1 . . . . Self-Inflicted Damage 426 | . 214 . . 18 . . . 11 . . . 9 . . . . . . . . . 49 . . 63 . . 62 Shots 6 | . 2 . . . . . . 1 . . . 1 . . . . . . . . . 1 . . . . . 1 Rammed 7 | . . 1 . . . . . . . . . . . . . . . . . . . . . . 5 1 . . Targets Rammed 7 | . . 1 . . . . . . . . . . . . . . . . . . . . . . 5 1 . . Kicked . | . . . . . . . . . . . . . . . . . . . . . . . . . . . . . Crushed . | . . . . . . . . . . . . . . . . . . . . . . . . . . . . . Highest Temperature 505 | . 8 31 216 324 425 165 394 115 505 . 8 219 493 . 133 210 102 64 . . 12 350 65 253 245 414 59 279 Average Temperature 80 | . 2 12 53 66 107 77 65 35 186 . 3 43 125 . 70 82 85 45 . . 8 102 26 67 93 120 23 122 Received Heat Transfer 4770 | . 162 108 114 486 471 27 147 111 168 . . 399 484 9 9 42 133 71 . . 136 297 27 160 . 354 360 495 Effects 20 | . . . . . 3 . 1 . 2 . . . 6 . . . . . . . . 2 . . 1 5 . . Shutdowns 8 | . . . . . 1 . 1 . 1 . . . 2 . . . . . . . . 1 . . . 2 . . Energy Bleed 3 | . . . . . . . . . . . . . 1 . . . . . . . . 1 . . 1 . . . Interference 3 | . . . . . . . . . . . . . 3 . . . . . . . . . . . . . . . Damage (minor) 1 | . . . . . . . . . 1 . . . . . . . . . . . . . . . . . . . Damage (major) 5 | . . . . . 2 . . . . . . . . . . . . . . . . . . . . 3 . . Siege Activations 17 | . . . . . . . . . . . . . . . . . 9 4 . . 3 . . . . . . 1 Total Turns 299 | . . . . . . . . . . . . . . . . . 151 70 . . 31 . . . . . . 47 Longest Duration 47 | . . . . . . . . . . . . . . . . . 37 26 . . 20 . . . . . . 47 Robots Corrupted 2 | . . . . . . . . . . . . . . . . . . . . . . . . . . . . 2 Combat Hostiles 2 | . . . . . . . . . . . . . . . . . . . . . . . . . . . . 2 Parts Fried 5 | . . . . . . . . . . . . . . . . . . . . . . . . . . . 3 2 Impact Corruptions . | . . . . . . . . . . . . . . . . . . . . . . . . . . . . . Robots Melted 5 | . . . . . . . 1 . . . . 2 1 . . . . . . . . 1 . . . . . . Combat Hostiles 4 | . . . . . . . 1 . . . . 1 1 . . . . . . . . 1 . . . . . . Parts Melted 32 | . . 1 1 . 1 . 3 . . . . 5 12 . . . 1 . . . . 1 . . . . 5 2 Heat Transferred 16794 | . 200 . 655 1924 2006 592 1293 280 510 . 5 2403 3015 . . . 555 . . 185 . 840 . . . . 1036 1295 Parts Sabotaged 2 | . . . . . . . . . . . . . . . . . . . . . . . . . . . . 2 Parts Stolen . | . . . . . . . . . . . . . . . . . . . . . . . . . . . . . Parts Stripped . | . . . . . . . . . . . . . . . . . . . . . . . . . . . . . Power Chain Reactions . | . . . . . . . . . . . . . . . . . . . . . . . . . . . . . Alert | -11 -10 -10 -9 -9 -9 -9 -7 -7 -7 -7 -6 -6 -6 -6 -6 -6 -5 -5 -5 -5 -4 -4 -3 -3 -3 -2 -1 -1 ------- Run | Yrd Mat Min Mat Sto Gar Rec Fac Low Low Zio Pro Fac Ext Cet Arc Hub Fac Upp Upp Zhi Pro Fac Res Arm Lab Res Acc Com Peak Influence 1109 | . 228 153 253 480 1041 509 182 . . . . 765 625 504 488 498 730 . . . . 1002 696 1059 . 1109 827 816 Initial 623 | . . 7 20 64 312 468 88 . . . . 457 276 349 177 100 95 . . . . 67 525 342 . . 623 468 Average 326 | . 87 58 133 238 621 384 88 . . . . 556 341 457 383 188 292 . . . . 422 596 660 . 185 670 606 Maximum Alert Level 4 | . 1 . 1 2 3 2 . . . . . 3 2 2 2 2 3 . . . . 3 2 3 . 4 3 3 Low Security (%) 41 | 100 98 100 81 45 . 17 100 . . . . . 14 . 1 67 41 . . . . 26 . . . 71 . . Level 1 20 | . 1 . 18 37 26 24 . . . . . . 62 10 49 28 26 . . . . 35 . 8 . 15 . . Level 2 30 | . . . . 16 35 58 . . . . . 87 23 89 48 3 31 . . . . 15 100 54 . 4 77 82 Level 3 7 | . . . . . 38 . . . . . . 12 . . . . 1 . . . . 22 . 36 . 6 22 17 Level 4 . | . . . . . . . . . . . . . . . . . . . . . . . . . . 2 . . Level 5 . | . . . . . . . . . . . . . . . . . . . . . . . . . . . . . High Security . | . . . . . . . . . . . . . . . . . . . . . . . . . . . . . Max Security . | . . . . . . . . . . . . . . . . . . . . . . . . . . . . . Squads Dispatched 66 | . 1 . 2 11 . . 5 . 1 . . 6 3 . . 1 3 . . . 1 6 2 4 . 15 3 2 Investigation 9 | . 1 . . 1 . . 1 . . . . 1 . . . . . . . . . 1 1 2 . 1 . . Extermination 12 | . . . . . . . 2 . . . . 1 . . . 1 2 . . . . 2 1 1 . 2 . . Reinforcement 22 | . . . 2 2 . . 2 . . . . 4 2 . . . 1 . . . . 2 . . . 4 3 . Assault 10 | . . . . 2 . . . . 1 . . . 1 . . . . . . . 1 1 . 1 . 1 . 2 Garrison 10 | . . . . 6 . . . . . . . . . . . . . . . . . . . . . 4 . . Intercept 3 | . . . . . . . . . . . . . . . . . . . . . . . . . . 3 . . Searches Triggered 2 | . . . . . . . . . . . . 1 . . . . . . . . . . 1 . . . . . Construction Impeded 1 | . . . . 1 . . . . . . . . . . . . . . . . . . . . . . . . Haulers Reinforced 5 | . . . . . . . 1 . . . . 1 . . . . . . . . . 1 . . . 1 1 . Active Scanning Responses . | . . . . . . . . . . . . . . . . . . . . . . . . . . . . . Cargo Convoy Interrupts 2 | . . . . . . . . . . . . 1 . . . . 1 . . . . . . . . . . . Stealth | -11 -10 -10 -9 -9 -9 -9 -7 -7 -7 -7 -6 -6 -6 -6 -6 -6 -5 -5 -5 -5 -4 -4 -3 -3 -3 -2 -1 -1 --------- Run | Yrd Mat Min Mat Sto Gar Rec Fac Low Low Zio Pro Fac Ext Cet Arc Hub Fac Upp Upp Zhi Pro Fac Res Arm Lab Res Acc Com Distress Signals 25 | . . . 2 3 . . . . . . . 3 1 2 . 1 1 . . . . 3 . . . 5 1 3 Communications Jammed 69 | . . . . . . . . . . . . . . . . . . . . . . 1 5 59 . 4 . . Distress Signals 65 | . . . . . . . . . . . . . . . . . . . . . . 1 5 55 . 4 . . Times Spotted 645 | . 16 9 31 41 27 3 20 14 12 . 3 52 41 10 18 12 45 14 . . 16 69 11 49 1 58 29 44 Peak Tracking Total 20 | . 6 3 5 6 4 2 4 9 8 . 2 11 5 5 2 6 9 5 . . 7 12 7 20 1 14 13 18 Tactical Retreats 56 | . 1 1 1 2 . . . 1 2 . . 5 2 . . . 2 2 . . . 10 3 9 . 11 1 3 Traps | -11 -10 -10 -9 -9 -9 -9 -7 -7 -7 -7 -6 -6 -6 -6 -6 -6 -5 -5 -5 -5 -4 -4 -3 -3 -3 -2 -1 -1 ------- Run | Yrd Mat Min Mat Sto Gar Rec Fac Low Low Zio Pro Fac Ext Cet Arc Hub Fac Upp Upp Zhi Pro Fac Res Arm Lab Res Acc Com Traps Triggered 21 | . 2 . 1 2 4 . . . . . . 2 . . . . 2 . . . . 1 . 3 . 2 . 2 Indirectly . | . . . . . . . . . . . . . . . . . . . . . . . . . . . . . Trap Hack Attempts . | . . . . . . . . . . . . . . . . . . . . . . . . . . . . . Triggered . | . . . . . . . . . . . . . . . . . . . . . . . . . . . . . Disarmed . | . . . . . . . . . . . . . . . . . . . . . . . . . . . . . Reprogrammed . | . . . . . . . . . . . . . . . . . . . . . . . . . . . . . Reused . | . . . . . . . . . . . . . . . . . . . . . . . . . . . . . Traps Extracted . | . . . . . . . . . . . . . . . . . . . . . . . . . . . . . Installed . | . . . . . . . . . . . . . . . . . . . . . . . . . . . . . Triggered 6 | . . . . . . . . . 2 . . 2 . . . . . 1 . . . . . . . 1 . . Machines | -11 -10 -10 -9 -9 -9 -9 -7 -7 -7 -7 -6 -6 -6 -6 -6 -6 -5 -5 -5 -5 -4 -4 -3 -3 -3 -2 -1 -1 ---------- Run | Yrd Mat Min Mat Sto Gar Rec Fac Low Low Zio Pro Fac Ext Cet Arc Hub Fac Upp Upp Zhi Pro Fac Res Arm Lab Res Acc Com Machines Disabled 58 | . 2 . . 2 3 . 1 . . . . 4 2 . 4 1 6 . . . 1 9 . 15 4 1 . 3 Max in Single Turn 4 | . 2 . . 1 1 . 1 . . . . 2 1 . 1 . 4 . . . 1 3 . 2 2 1 . 2 Garrison Access 2 | . . . . . . . . . . . . . . . . . 2 . . . . . . . . . . . Garrison Relay 3 | . . . . . 3 . . . . . . . . . . . . . . . . . . . . . . . Network Hub 1 | . . . . . . . . . . . . . . . . 1 . . . . . . . . . . . . Machines Repaired . | . . . . . . . . . . . . . . . . . . . . . . . . . . . . . Machines Dismantled 10 | . . . . . 1 . . . . . . 3 4 1 . . . . . . . . . 1 . . . . Machines Sabotaged . | . . . . . . . . . . . . . . . . . . . . . . . . . . . . . Overloaded Fab Kills . | . . . . . . . . . . . . . . . . . . . . . . . . . . . . . Hacking | -11 -10 -10 -9 -9 -9 -9 -7 -7 -7 -7 -6 -6 -6 -6 -6 -6 -5 -5 -5 -5 -4 -4 -3 -3 -3 -2 -1 -1 --------- Run | Yrd Mat Min Mat Sto Gar Rec Fac Low Low Zio Pro Fac Ext Cet Arc Hub Fac Upp Upp Zhi Pro Fac Res Arm Lab Res Acc Com Machines Accessed 79 | . 8 . 5 11 3 4 5 . . . . 2 4 3 1 . 4 . . 9 . 4 3 8 1 . 4 . Terminals 41 | . 7 . 4 10 3 3 4 . . . . . 4 3 . . . . . . . . . . . . 3 . Fabricators 10 | . . . . . . . 1 . . . . . . . . . 1 . . . . 1 . 7 . . . . Repair Stations 1 | . . . . . . . . . . . . . . . . . . . . . . 1 . . . . . . Recycling Units 11 | . 1 . 1 . . 1 . . . . . 2 . . . . 1 . . . . 2 1 1 . . 1 . Scanalyzers 2 | . . . . . . . . . . . . . . . . . . . . . . . 2 . . . . . Garrison Access 3 | . . . . 1 . . . . . . . . . . . . 2 . . . . . . . . . . . Total Hacks 253 | . 19 . 13 27 6 7 9 . . . . 4 11 8 25 . 8 . . 48 . 24 7 20 1 . 16 . Successful 128 | . 6 . 6 10 1 4 1 . . . . 1 1 2 25 . 3 . . 48 . 7 3 6 1 . 3 . Failed 125 | . 13 . 7 17 5 3 8 . . . . 3 10 6 . . 5 . . . . 17 4 14 . . 13 . Catastrophic 33 | . 2 . . 5 2 1 4 . . . . . 1 1 . . 1 . . . . 3 1 7 . . 5 . Database Lockouts . | . . . . . . . . . . . . . . . . . . . . . . . . . . . . . Manual 124 | . 3 . 2 14 . 5 . . . 1 . 13 12 1 . 19 2 . . . . 18 2 25 1 2 . 4 Terminals 108 | . 17 . 12 26 6 6 8 . . . . . 11 8 . . . . . . . . . . . . 14 . Fabricators 29 | . . . . . . . 1 . . . . . . . . . 4 . . . . 6 . 18 . . . . Repair Stations 9 | . . . . . . . . . . . . . . . . . . . . . . 9 . . . . . . Recycling Units 27 | . 2 . 1 . . 1 . . . . . 4 . . . . 2 . . . . 9 4 2 . . 2 . Scanalyzers 3 | . . . . . . . . . . . . . . . . . . . . . . . 3 . . . . . Garrison Access 3 | . . . . 1 . . . . . . . . . . . . 2 . . . . . . . . . . . Terminal Hacks 104 | . 5 . 5 9 1 3 1 . . . . . 1 2 25 . . . . 48 . . . . 1 . 3 . Record 64 | . . . . . . . . . . . . . . 2 25 . . . . 36 . . . . 1 . . . Part Schematic 4 | . . . . . . . . . . . . . . . . . . . . 4 . . . . . . . . Robot Analysis 4 | . . . . . . . . . . . . . . . . . . . . 4 . . . . . . . . Prototype ID Bank 8 | . 1 . 2 1 . . . . . . . . . . . . . . . 4 . . . . . . . . Open Door 6 | . . . . 2 . . . . . . . . 1 . . . . . . . . . . . . . 3 . Level Access Points 1 | . . . . . . 1 . . . . . . . . . . . . . . . . . . . . . . Branch Access Points 1 | . . . . . . . 1 . . . . . . . . . . . . . . . . . . . . . Emergency Access Points 3 | . 1 . . 1 1 . . . . . . . . . . . . . . . . . . . . . . . Terminal Index 1 | . . . 1 . . . . . . . . . . . . . . . . . . . . . . . . . Unreport Threat 3 | . . . . 2 . 1 . . . . . . . . . . . . . . . . . . . . . . Locate Traps 2 | . . . . 2 . . . . . . . . . . . . . . . . . . . . . . . . Investigation Status 1 | . 1 . . . . . . . . . . . . . . . . . . . . . . . . . . . Hauler Manifests 2 | . 1 . . . . 1 . . . . . . . . . . . . . . . . . . . . . . Registered Components 3 | . 1 . 1 1 . . . . . . . . . . . . . . . . . . . . . . . . Registered Prototypes 1 | . . . 1 . . . . . . . . . . . . . . . . . . . . . . . . . Fabricator Hacks 5 | . . . . . . . . . . . . . . . . . . . . . . 2 . 3 . . . . Load Schematic 2 | . . . . . . . . . . . . . . . . . . . . . . 1 . 1 . . . . Build 3 | . . . . . . . . . . . . . . . . . . . . . . 1 . 2 . . . . Repair Station Hacks 3 | . . . . . . . . . . . . . . . . . . . . . . 3 . . . . . . Scan Component 2 | . . . . . . . . . . . . . . . . . . . . . . 2 . . . . . . Repair 1 | . . . . . . . . . . . . . . . . . . . . . . 1 . . . . . . Recycling Unit Hacks 8 | . 1 . 1 . . 1 . . . . . 1 . . . . 1 . . . . 2 1 . . . . . Retrieve Components 8 | . 1 . 1 . . 1 . . . . . 1 . . . . 1 . . . . 2 1 . . . . . Scanalyzer 2 | . . . . . . . . . . . . . . . . . . . . . . . 2 . . . . . Insert Component 1 | . . . . . . . . . . . . . . . . . . . . . . . 1 . . . . . Analyze 1 | . . . . . . . . . . . . . . . . . . . . . . . 1 . . . . . Garrison Access Hacks 3 | . . . . 1 . . . . . . . . . . . . 2 . . . . . . . . . . . Unlock Access 1 | . . . . 1 . . . . . . . . . . . . . . . . . . . . . . . . Seal Access 2 | . . . . . . . . . . . . . . . . . 2 . . . . . . . . . . . Unauthorized Hacks 3 | . . . . . . . . . . . . . . . . . . . . . . . . 3 . . . . Terminals . | . . . . . . . . . . . . . . . . . . . . . . . . . . . . . Fabricators 3 | . . . . . . . . . . . . . . . . . . . . . . . . 3 . . . . Liberate 1 | . . . . . . . . . . . . . . . . . . . . . . . . 1 . . . . Fabnet 2 | . . . . . . . . . . . . . . . . . . . . . . . . 2 . . . . Repair Stations . | . . . . . . . . . . . . . . . . . . . . . . . . . . . . . Recycling Units . | . . . . . . . . . . . . . . . . . . . . . . . . . . . . . Scanalyzers . | . . . . . . . . . . . . . . . . . . . . . . . . . . . . . Garrison Access . | . . . . . . . . . . . . . . . . . . . . . . . . . . . . . Data Cores Recovered 3 | . 2 . 1 . . . . . . . . . . . . . . . . . . . . . . . . . Used 1 | . . . 1 . . . . . . . . . . . . . . . . . . . . . . . . . Hacking Detections 51 | . 7 . 4 8 2 3 5 . . . . 1 3 4 . . 2 . . . . 3 2 5 . . 2 . Full Trace Events 4 | . 1 . . . . . 1 . . . . . . . . . . . . . . 1 . 1 . . . . Feedback Events . | . . . . . . . . . . . . . . . . . . . . . . . . . . . . . Feedback Blocked . | . . . . . . . . . . . . . . . . . . . . . . . . . . . . . Robot Schematics Acquired 3 | . . . . . . . . . . 3 . . . . . . . . . . . . . . . . . . Robots Built . | . . . . . . . . . . . . . . . . . . . . . . . . . . . . . Authchips . | . . . . . . . . . . . . . . . . . . . . . . . . . . . . . Time . | . . . . . . . . . . . . . . . . . . . . . . . . . . . . . Total Robot Build Rating . | . . . . . . . . . . . . . . . . . . . . . . . . . . . . . Part Schematics Acquired 20 | . . . . . . . . . . 15 . . . . . . . . . 4 . . 1 . . . . . Parts Built 5 | . . . . . . . . . . . . . . . . . . . . . . 2 . 3 . . . . Authchips . | . . . . . . . . . . . . . . . . . . . . . . . . . . . . . Time 333 | . . . . . . . . . . . . . . . . . . . . . . 95 . 238 . . . . Total Part Build Rating 34 | . . . . . . . . . . . . . . . . . . . . . . 10 . 24 . . . . Parts Repaired 1 | . . . . . . . . . . . . . . . . . . . . . . 1 . . . . . . Time 62 | . . . . . . . . . . . . . . . . . . . . . . 62 . . . . . . Parts Recycled . | . . . . . . . . . . . . . . . . . . . . . . . . . . . . . Recycled Matter . | . . . . . . . . . . . . . . . . . . . . . . . . . . . . . Retrieved Matter . | . . . . . . . . . . . . . . . . . . . . . . . . . . . . . Retrieved Components 36 | . 2 . 9 . . 9 . . . . . 3 . . . . 10 . . . . 3 . . . . . . Parts Scanalyzed 1 | . . . . . . . . . . . . . . . . . . . . . . . 1 . . . . . Part Schematics Acquired 1 | . . . . . . . . . . . . . . . . . . . . . . . 1 . . . . . Parts Damaged . | . . . . . . . . . . . . . . . . . . . . . . . . . . . . . Bothacking | -11 -10 -10 -9 -9 -9 -9 -7 -7 -7 -7 -6 -6 -6 -6 -6 -6 -5 -5 -5 -5 -4 -4 -3 -3 -3 -2 -1 -1 ------------ Run | Yrd Mat Min Mat Sto Gar Rec Fac Low Low Zio Pro Fac Ext Cet Arc Hub Fac Upp Upp Zhi Pro Fac Res Arm Lab Res Acc Com Used RIF Installer . | . . . . . . . . . . . . . . . . . . . . . . . . . . . . . Robots Hacked 5 | . . . . . . . . . . . . . . . . . . . . . . . . . . 4 1 . Non-combat . | . . . . . . . . . . . . . . . . . . . . . . . . . . . . . Combat 5 | . . . . . . . . . . . . . . . . . . . . . . . . . . 4 1 . Robot Hacks Applied . | . . . . . . . . . . . . . . . . . . . . . . . . . . . . . Relay Couplers Released 17 | . . . . . 13 . . . . . . . . . . . . . . . . 4 . . . . . . Machine Destruction 13 | . . . . . 13 . . . . . . . . . . . . . . . . . . . . . . . Programmers 4 | . . . . . . . . . . . . . . . . . . . . . . 4 . . . . . . Fabnet Peak Effective % 6 | . . . . . . . . . . . . . . . . . . . . . . . . . . 6 2 2 Autooverrided 5 | . . . . . . . . . . . . . . . . . . . . . . . . . . 4 1 . Robots Rewired 36 | . . . . . . 12 . 2 2 . . . 15 . . . . 1 . . . . . 4 . . . . Allies Hacked 3 | . . . . . . 1 1 . . . . . . . . . . . . . 1 . . . . . . . Hacks Repelled . | . . . . . . . . . . . . . . . . . . . . . . . . . . . . . Allies | -11 -10 -10 -9 -9 -9 -9 -7 -7 -7 -7 -6 -6 -6 -6 -6 -6 -5 -5 -5 -5 -4 -4 -3 -3 -3 -2 -1 -1 -------- Run | Yrd Mat Min Mat Sto Gar Rec Fac Low Low Zio Pro Fac Ext Cet Arc Hub Fac Upp Upp Zhi Pro Fac Res Arm Lab Res Acc Com Total Allies 129 | . . 3 . 2 1 12 . 2 2 4 . 3 29 5 . 1 . 1 . . . 8 . 14 . 5 8 29 Largest Group 15 | . . 3 1 2 1 12 12 2 2 6 6 6 11 15 12 10 . 1 1 1 1 3 . 4 . 3 7 15 Highest-Rated Group 932 | . . 40 16 62 20 179 179 62 36 186 186 186 529 932 745 521 . 30 30 30 30 288 . 288 . 173 102 214 Highest-Rated Ally 159 | . . 16 16 31 20 27 27 32 32 39 39 39 159 159 159 96 . 30 30 30 30 96 . 96 . 89 58 15 Zionite Dispatches 15 | . . . . . . . . . . . . 2 3 . . 2 . . . . . 3 . 4 . 1 . . Light 6 | . . . . . . . . . . . . . 2 . . . . . . . . 2 . 2 . . . . Recon 2 | . . . . . . . . . . . . 1 . . . 1 . . . . . . . . . . . . Fire 1 | . . . . . . . . . . . . 1 . . . . . . . . . . . . . . . . Hacker 2 | . . . . . . . . . . . . . . . . . . . . . . 1 . 1 . . . . Demo 1 | . . . . . . . . . . . . . . . . . . . . . . . . 1 . . . . Kinetic Resupply 1 | . . . . . . . . . . . . . . . . 1 . . . . . . . . . . . . Melee Resupply 1 | . . . . . . . . . . . . . . . . . . . . . . . . . . 1 . . Heavy Resupply 1 | . . . . . . . . . . . . . 1 . . . . . . . . . . . . . . . Total Orders 36 | . . . . 16 . . . . . . . 4 1 . . 7 7 . . . . . . . . 1 . . DROP 3 | . . . . . . . . . . . . . 1 . . 1 . . . . . . . . . 1 . . EXPLORE 33 | . . . . 16 . . . . . . . 4 . . . 6 7 . . . . . . . . . . . Ally Attacks 601 | . . 20 14 20 . 2 14 2 6 . 5 51 121 58 16 28 . . . . . 23 . 9 . 8 35 169 Total Damage 14284 | . . 225 143 293 . 27 233 52 201 . 29 615 2478 1845 579 1763 . . . . . 1166 . 706 . 171 607 3151 Kills 92 | . . 4 3 3 . 1 . 2 1 . 1 4 17 11 4 11 . . . . . 8 . 1 . 1 3 17 Allies Corrupted 4 | . . . . . . . . . . . . . . . . 4 . . . . . . . . . . . . Allies Melted . | . . . . . . . . . . . . . . . . . . . . . . . . . . . . . Intel | -11 -10 -10 -9 -9 -9 -9 -7 -7 -7 -7 -6 -6 -6 -6 -6 -6 -5 -5 -5 -5 -4 -4 -3 -3 -3 -2 -1 -1 ------- Run | Yrd Mat Min Mat Sto Gar Rec Fac Low Low Zio Pro Fac Ext Cet Arc Hub Fac Upp Upp Zhi Pro Fac Res Arm Lab Res Acc Com Robot Analysis Total 4 | . . . . . . . . . . . . . . . . . . . . 4 . . . . . . . . Derelict Logs Recovered 9 | . . 1 . . . . . 2 2 . 1 . . . . . . 1 . . 2 . . . . . . . Drone Launches 34 | . . . . 16 . . . . . . . 5 . . . 6 7 . . . . . . . . . . . Drone Recoveries 14 | . . . . 2 . . . . . . . 4 . . . 5 3 . . . . . . . . . . . Zionite Intel Received 9 | . . . . . . . . . . . . 2 2 . . 3 . . . . . 2 . . . . . . Emergency Access 1 | . . . . . . . . . . . . . . . . 1 . . . . . . . . . . . . Guard Positions 1 | . . . . . . . . . . . . . . . . 1 . . . . . . . . . . . . Prototype Stockpiles 2 | . . . . . . . . . . . . . 1 . . . . . . . . 1 . . . . . . Unaware Analyses 1 | . . . . . . . . . . . . 1 . . . . . . . . . . . . . . . . Trap Installations 2 | . . . . . . . . . . . . . 1 . . 1 . . . . . . . . . . . . Active Terminals 1 | . . . . . . . . . . . . 1 . . . . . . . . . . . . . . . . Depthwide Sectors/0 1 | . . . . . . . . . . . . . . . . . . . . . . 1 . . . . . . Exploration | -11 -10 -10 -9 -9 -9 -9 -7 -7 -7 -7 -6 -6 -6 -6 -6 -6 -5 -5 -5 -5 -4 -4 -3 -3 -3 -2 -1 -1 ------------- Run | Yrd Mat Min Mat Sto Gar Rec Fac Low Low Zio Pro Fac Ext Cet Arc Hub Fac Upp Upp Zhi Pro Fac Res Arm Lab Res Acc Com Turns Passed 23901 | 57 1048 637 1670 1563 1254 606 1589 550 615 1361 283 1373 1465 765 652 477 1207 618 396 504 1256 895 358 629 177 1075 396 425 Spaces Moved 14971 | 42 710 358 869 703 623 239 1083 420 427 1171 232 843 570 351 303 265 533 303 231 282 717 927 605 706 169 671 324 294 Core 273 | 6 1 . . . . . . . . . . . . . . . . . . . . . . . . . 155 111 Treads 6451 | . 28 358 869 703 623 239 275 . . . . . 298 351 303 265 533 303 231 282 717 41 . . . . 15 17 Legs 4866 | 36 681 . . . . . 808 420 427 1171 232 843 241 . . . . . . . . . . . . . 7 . Wheels 51 | . . . . . . . . . . . . . 31 . . . . . . . . . . . . . . 20 Hover 3330 | . . . . . . . . . . . . . . . . . . . . . . 886 605 706 169 671 147 146 Flight . | . . . . . . . . . . . . . . . . . . . . . . . . . . . . . Fastest Speed 20 | 50 120 160 160 160 160 160 90 97 97 105 108 105 105 160 160 160 160 160 160 160 162 24 30 30 43 20 50 50 Average Speed 118 | 110 126 160 160 160 160 160 111 105 116 107 108 109 138 160 160 160 160 160 160 160 162 54 43 43 64 60 73 90 Slowest Speed 360 | 120 300 160 160 160 240 160 360 183 180 108 108 187 190 160 160 160 160 160 160 162 165 168 95 100 106 106 260 185 Overloaded Moves . | . . . . . . . . . . . . . . . . . . . . . . . . . . . . . Propulsion Burnouts . | . . . . . . . . . . . . . . . . . . . . . . . . . . . . . Robots Hopped . | . . . . . . . . . . . . . . . . . . . . . . . . . . . . . Cave-ins Triggered . | . . . . . . . . . . . . . . . . . . . . . . . . . . . . . Teleports 2 | . . . . . . . . . . . . . . . . . . . . 1 . . . . 1 . . . Exploration Rate (%) 55 | 3 92 88 61 94 69 62 23 65 63 87 45 30 76 89 89 34 28 51 47 62 96 29 20 66 94 21 11 15 Regions Visited 28 Branch Regions 18 Pre-discovered Areas 16 | . . . . . . . . 2 . 5 1 . . . . . . . . 3 . 5 . . . . . . Known Exits Taken 8 | . . . 1 1 . 1 1 . . . . . . . 1 . . . . . . 1 1 . 1 . . . Unknown Exits Taken 19 | 1 1 1 . . . . . 1 1 1 1 1 1 1 . 1 1 1 1 1 1 . . 1 . 1 1 . Scrap Searched 20 | . . 3 . . . . . 3 3 4 1 . . . . . . 1 3 . 2 . . . . . . . Spaces Dug 58 | . . . . 1 . . 1 . . . . . . . . . . . . . . 34 6 16 . . . . Terrain Destroyed 781 | . 32 . . 11 . . 1 55 . . . 49 11 . 18 11 72 25 11 . 80 93 6 62 . 134 20 90 Melee 25 | . . . . 1 . . 1 . . . . . . . . . . . . . . 1 6 16 . . . . Projectile 201 | . . . . . . . . . . . . 1 11 . 18 11 40 25 11 . 11 64 . 9 . . . . AOE 555 | . 32 . . 10 . . . 55 . . . 48 . . . . 32 . . . 69 28 . 37 . 134 20 90 Terrain Rammed 1 | . . . . 1 . . . . . . . . . . . . . . . . . . . . . . . . Walls Destroyed . | . . . . . . . . . . . . . . . . . . . . . . . . . . . . . Machines Disabled . | . . . . . . . . . . . . . . . . . . . . . . . . . . . . . Actions | -11 -10 -10 -9 -9 -9 -9 -7 -7 -7 -7 -6 -6 -6 -6 -6 -6 -5 -5 -5 -5 -4 -4 -3 -3 -3 -2 -1 -1 --------- Run | Yrd Mat Min Mat Sto Gar Rec Fac Low Low Zio Pro Fac Ext Cet Arc Hub Fac Upp Upp Zhi Pro Fac Res Arm Lab Res Acc Com Total 19132 | 50 792 395 1030 963 760 440 1387 488 499 1267 253 1074 1042 539 427 297 748 376 244 320 766 1160 666 902 215 1206 432 394 Wait 1315 | . 2 16 40 78 62 16 148 22 26 68 10 25 68 131 75 4 84 33 4 5 21 22 2 6 3 325 14 5 Move 14943 | 41 709 357 868 702 622 238 1082 419 426 1170 231 842 569 350 302 264 532 302 230 281 716 926 604 705 168 670 323 294 Hop . | . . . . . . . . . . . . . . . . . . . . . . . . . . . . . Pick Up 198 | 3 8 3 13 8 2 . 16 4 1 11 . 13 17 7 1 2 14 1 1 4 . 22 2 15 5 14 9 2 Fast Attach 282 | 6 7 . 7 11 1 2 26 2 1 3 2 19 23 10 9 4 9 . 1 8 . 19 11 15 5 33 22 26 Attach 124 | . 2 . 4 3 6 1 10 3 5 . . 8 5 1 1 2 4 2 . 2 1 19 2 11 8 12 9 3 Detach 77 | . 3 . 1 2 . 2 9 1 . . 1 4 6 2 1 3 . . . . . 7 3 7 4 11 4 6 Swap 250 | . 11 3 13 27 4 2 12 5 1 4 1 18 26 7 6 3 17 5 . 3 2 22 13 22 . 23 . . Drop 340 | . 14 1 21 29 1 . 37 2 . 9 1 20 34 21 11 4 16 . 1 10 . 28 11 22 1 30 6 10 Fire 955 | . 36 13 63 88 54 11 46 24 29 1 7 98 73 2 21 11 70 29 7 5 25 89 . 31 16 13 45 48 Melee 135 | . . . . 3 . . 1 . . 1 . . . . . . . . . . . 6 18 32 . 74 . . Ram 7 | . . . . 1 . . . . . . . . . . . . . . . . . . . . 5 1 . . Kick . | . . . . . . . . . . . . . . . . . . . . . . . . . . . . . Crush 1 | . . 1 . . . . . . . . . . . . . . . . . . . . . . . . . . Escape Stasis 6 | . . . . . . . . . . . . . 6 . . . . . . . . . . . . . . . Rewire 407 | . . 1 . 4 . 168 . 6 10 . . . 182 . . . . 4 . 1 1 . . 30 . . . . Trap . | . . . . . . . . . . . . . . . . . . . . . . . . . . . . . Miscellaneous 92 | . . . . 7 8 . . . . . . 27 33 8 . . 2 . . 1 . . . 6 . . . . Route ------- -11/Scrapyard -10/Materials (discovered 4 exits: *Mat x3 / [*Min]) -10/Mines (discovered 2 exits: *Mat x2) -9/Materials (discovered 4 exits: *Mat x2 / [*Min] / *Sto) -9/Storage (discovered 2 exits: *Mat / Gar) -9/Garrison (discovered 2 exits: *Rec x2) -9/Recycling -7/Factory (discovered 4 exits: *Fac x2 / *Low x2) -7/Lower Caves -7/Lower Caves -7/Zion -6/Proximity Caves -6/Factory (discovered 4 exits: [*Low x2] / *Ext x2) -6/Extension (discovered 2 exits: *Fac / *Cet) -6/Cetus (discovered 3 exits: *Fac x2 / *Arc) -6/Archives (discovered 3 exits: *Fac / *Hub x2) -6/Hub_04(d) -5/Factory (discovered 3 exits: *Fac x2 / [*Upp]) -5/Upper Caves -5/Upper Caves -5/Zhirov -4/Proximity Caves -4/Factory (discovered 2 exits: *Res x2) -3/Research (discovered 2 exits: *Res / *Arm) -3/Armory (discovered 2 exits: *Res / *Lab) -3/Lab -2/Research -1/Access -1/Command History --------- Turn | Location | Event 5 | -11/Scrapyard | Discovered new exit (range 15) 58 | -11/Scrapyard | Entered Materials 243 | -10/Materials | Discovered new exit (range 15) 319 | -10/Materials | Build established: Mutant 412 | -10/Materials | Discovered new exit (range 16) 747 | -10/Materials | Discovered new exit (range 16) 906 | -10/Materials | Discovered new exit (range 8) 1106 | -10/Materials | Entered Mines 1202 | -10/Mines | Assisted by bots powering up and referring to "LRC-V3" 1266 | -10/Mines | Found a hidden stash of uninstalled traps 1387 | -10/Mines | Learned Materials stockpile data 1583 | -10/Mines | Discovered new exit (range 13) 1734 | -10/Mines | Discovered new exit (range 8) 1743 | -10/Mines | Entered Materials 1743 | -9/Materials | Accompanied by 1 ally 1743 | -9/Materials | Evolved 2 slots: Propulsion x1, Utility x1 1846 | -9/Materials | Discovered new exit (range 10) 2153 | -9/Materials | Discovered new exit (range 16) 2399 | -9/Materials | Build established: Scavenger-Mutant 2900 | -9/Materials | Discovered new exit (range 11) 3221 | -9/Materials | Discovered new exit (range 6) 3312 | -9/Materials | Identified exit to Materials 3410 | -9/Materials | Identified exit to Storage 3413 | -9/Materials | Entered Storage 3607 | -9/Storage | Garrison activated, responded to threat 3689 | -9/Storage | Met a pair of Derelict thieves 3889 | -9/Storage | Lost 14 allies 3894 | -9/Storage | Destroyed 7 combat bots 4141 | -9/Storage | Build established: Mutant 4456 | -9/Storage | Garrison activated, responded to threat 4820 | -9/Storage | Discovered exit to Materials (range 16) 4975 | -9/Storage | Identified exit to Garrison 4976 | -9/Storage | Entered Garrison 5015 | -9/Garrison | Core integrity fell below 50% 5071 | -9/Garrison | Lost 6 parts (3n1u2w) 5130 | -9/Garrison | Triggered checkpoint 5296 | -9/Garrison | Triggered checkpoint 5326 | -9/Garrison | Triggered checkpoint 5360 | -9/Garrison | Triggered checkpoint 5364 | -9/Garrison | Build established: Scavenger-Mutant 5447 | -9/Garrison | Garrison Relay disabled 5514 | -9/Garrison | Triggered checkpoint 5601 | -9/Garrison | Core integrity fell below 20% 5647 | -9/Garrison | Discovered new exit (range 12) 5698 | -9/Garrison | Triggered checkpoint 5772 | -9/Garrison | Garrison Relay disabled 5980 | -9/Garrison | Triggered checkpoint 6021 | -9/Garrison | Garrison Relay disabled 6065 | -9/Garrison | Rescued a captive Derelict 6125 | -9/Garrison | Discovered new exit (range 13) 6230 | -9/Garrison | Entered Recycling 6230 | -9/Recycling | Accompanied by 1 ally 6583 | -9/Recycling | Identified exit to Factory 6758 | -9/Recycling | Build established: Commander-Mutant 6836 | -9/Recycling | Entered Factory 6836 | -7/Factory | Accompanied by 12 allies 6836 | -7/Factory | Evolved 4 slots: Propulsion x2, Utility x2 7185 | -7/Factory | Lost 5 allies 7621 | -7/Factory | Build established: Mutant 7730 | -7/Factory | Discovered new exit (range 15) 7980 | -7/Factory | Identified exit to Lower Caves 8191 | -7/Factory | Discovered new exit (range 15) 8425 | -7/Factory | Entered Lower Caves 8470 | -7/Lower Caves | Build established: Scavenger-Mutant 8481 | -7/Lower Caves | Attracted the attention of an 0b10 outpost 8626 | -7/Lower Caves | Met a Warlord Commander 8627 | -7/Lower Caves | Learned location of Warlord (-4) 8628 | -7/Lower Caves | Warlord Commander delivered Encrypted Comm Array 8632 | -7/Lower Caves | Found Encrypted Comm Array 8891 | -7/Lower Caves | Build established: Mutant 8924 | -7/Lower Caves | Learned location of Extension (-6) 8933 | -7/Lower Caves | Learned Factory terminal intel 8949 | -7/Lower Caves | Discovered new exit (range 12) 8975 | -7/Lower Caves | Entered another Lower Caves area 8975 | -7/Lower Caves | Accompanied by 1 ally 9005 | -7/Lower Caves | Learned Factory emergency access door positions 9201 | -7/Lower Caves | Encountered a Warlord checkpoint 9219 | -7/Lower Caves | Learned Factory emergency access door positions 9298 | -7/Lower Caves | Attracted the attention of an 0b10 outpost 9368 | -7/Lower Caves | Lost 6 parts (1p3n1u1w) 9372 | -7/Lower Caves | Destroyed 7 combat bots 9453 | -7/Lower Caves | Discovered new exit (range 13) 9590 | -7/Lower Caves | Entered Zion 9590 | -7/Zion | Accompanied by 2 allies 9651 | -7/Zion | Received a visual enhancement algorithm 9715 | -7/Zion | Found CR-A16's Pointy Stick 9720 | -7/Zion | Discovered new exit (range 16) 9856 | -7/Zion | Build established: Scavenger-Mutant 9863 | -7/Zion | Visited the Megawrench Repair Shop 9863 | -7/Zion | Megawrench repaired 12 parts 10332 | -7/Zion | Given A8's code to call for help 10371 | -7/Zion | Given the Hacking Drone Bay 10576 | -7/Zion | Imprinted 10578 | -7/Zion | Declared Zion's savior 10951 | -7/Zion | Entered Proximity Caves 10951 | -6/Proximity Caves | Accompanied by 6 allies 11023 | -6/Proximity Caves | Spotter reported a threat 11026 | -6/Proximity Caves | Spotter reported a threat 11110 | -6/Proximity Caves | Spotter reported a threat 11159 | -6/Proximity Caves | Discovered new exit (range 12) 11234 | -6/Proximity Caves | Entered Factory 11234 | -6/Factory | Accompanied by 6 allies 11234 | -6/Factory | Evolved 2 slots: Power x1, Utility x1 11236 | -6/Factory | Loaded intel: 27 terminal locations 11271 | -6/Factory | Build established: Mutant 11522 | -6/Factory | Lost 3 allies 11556 | -6/Factory | Retrieved Zion intel report: Unaware Analyses 11557 | -6/Factory | Zion Recon squad teleported in 11584 | -6/Factory | Search patrols dispatched 11753 | -6/Factory | Lost 4 parts (1p2n1u) 11826 | -6/Factory | Discovered new exit (range 7) 11878 | -6/Factory | Retrieved Zion intel report: Active Terminals 11911 | -6/Factory | Discovered new exit (range 4) 11935 | -6/Factory | Build established: Scavenger-Mutant 11987 | -6/Factory | Cargo convoy interrupted 12145 | -6/Factory | Discovered new exit (range 15) 12184 | -6/Factory | Assembled infested ambush trap array 12277 | -6/Factory | Zion Fire squad teleported in 12502 | -6/Factory | Terminal network hard line cut 12535 | -6/Factory | Build established: Mutant 12598 | -6/Factory | Discovered new exit (range 4) 12607 | -6/Factory | Entered Extension 12607 | -6/Extension | Accompanied by 1 ally 12684 | -6/Extension | Retrieved Zion intel report: Trap Installations 12717 | -6/Extension | Retrieved Zion intel report: Prototype Stockpiles 12718 | -6/Extension | Zion Light squad teleported in 12737 | -6/Extension | Rescued a captive Derelict 12851 | -6/Extension | Rescued a captive Derelict 12855 | -6/Extension | Rescued a captive Derelict 12949 | -6/Extension | Rescued a captive Derelict 12956 | -6/Extension | Spotted B-75 Beast 12957 | -6/Extension | First assault squad dispatched 12967 | -6/Extension | Spotted B-75 Beast 12989 | -6/Extension | Destroyed B-75 Beast 13012 | -6/Extension | Lost 8 allies 13030 | -6/Extension | Destroyed B-75 Beast 13049 | -6/Extension | Found Prototype Protection 13049 | -6/Extension | Identified Zio. Weapon Casing 13053 | -6/Extension | Lost 5 parts (1p2n2u) 13308 | -6/Extension | Zion Heavy Resupply teleported in 13446 | -6/Extension | Build established: Messiah-Mutant 13487 | -6/Extension | Zion Light squad teleported in 13582 | -6/Extension | Disrupted transfer network 13709 | -6/Extension | Rescued A7 13861 | -6/Extension | Terminal network hard line cut 13878 | -6/Extension | Disrupted transfer network 14009 | -6/Extension | Rescued a captive Derelict 14009 | -6/Extension | Rescued a captive Derelict 14048 | -6/Extension | Discovered new exit (range 10) 14050 | -6/Extension | Discovered new exit (range 6) 14051 | -6/Extension | Build established: Scavenger-Mutant 14072 | -6/Extension | Entered Cetus 14072 | -6/Cetus | Accompanied by 11 allies (A7) 14077 | -6/Cetus | Acquired a Cetus Manufacturing Module code from A7 14093 | -6/Cetus | Spotted Cetus Guard 14093 | -6/Cetus | Spotted Cetus Guard 14095 | -6/Cetus | Spotted Cetus Guard 14096 | -6/Cetus | Spotted Cetus Guard 14103 | -6/Cetus | Allies destroyed Cetus Guard 14104 | -6/Cetus | Allies destroyed Cetus Guard 14104 | -6/Cetus | Allies destroyed Cetus Guard 14108 | -6/Cetus | Allies destroyed Cetus Guard 14208 | -6/Cetus | Discovered new exit (range 15) 14384 | -6/Cetus | Started Cetus Manufacturing Module 14409 | -6/Cetus | Manufactured an Enhanced Grunt 14421 | -6/Cetus | Escorted A7 to Cetus Mainframe 14434 | -6/Cetus | Manufactured an Enhanced Grunt 14459 | -6/Cetus | Manufactured an Enhanced Grunt 14475 | -6/Cetus | Discovered new exit (range 15) 14484 | -6/Cetus | Manufactured an Enhanced Grunt 14503 | -6/Cetus | Spotted Cetus Guard 14503 | -6/Cetus | Spotted Cetus Guard 14507 | -6/Cetus | Spotted Cetus Guard 14508 | -6/Cetus | Spotted Cetus Guard 14509 | -6/Cetus | Manufactured an Enhanced Grunt 14516 | -6/Cetus | Discovered new exit (range 16) 14516 | -6/Cetus | Allies destroyed Cetus Guard 14516 | -6/Cetus | Allies destroyed Cetus Guard 14521 | -6/Cetus | Allies destroyed Cetus Guard 14523 | -6/Cetus | Core integrity fell below 50% 14523 | -6/Cetus | Allies destroyed Cetus Guard 14526 | -6/Cetus | Scared off Revision 17 14554 | -6/Cetus | Lost 3 allies 14837 | -6/Cetus | Entered Archives 14837 | -6/Archives | Accompanied by 12 allies (A7) 14842 | -6/Archives | Received a hacking code to weaken MAIN.C 14888 | -6/Archives | Discovered new exit (range 16) 14911 | -6/Archives | Discovered new exit (range 13) 14976 | -6/Archives | Discovered new exit (range 13) 15136 | -6/Archives | Unable to access archive contents 15363 | -6/Archives | Identified exit to Hub_04(d) 15489 | -6/Archives | Entered Hub_04(d) 15489 | -6/Hub_04(d) | Accompanied by 9 allies 15541 | -6/Hub_04(d) | Retrieved Zion intel report: Trap Installations 15542 | -6/Hub_04(d) | Zion Kinetic Resupply teleported in 15567 | -6/Hub_04(d) | Discovered new exit (range 15) 15753 | -6/Hub_04(d) | Retrieved Zion intel report: Emergency Access 15754 | -6/Hub_04(d) | Zion Recon squad teleported in 15838 | -6/Hub_04(d) | Retrieved Zion intel report: Guard Positions 15871 | -6/Hub_04(d) | Network Hub disabled 15891 | -6/Hub_04(d) | Spotted Lightning 15891 | -6/Hub_04(d) | Spotted Lightning 15892 | -6/Hub_04(d) | Spotted Lightning 15944 | -6/Hub_04(d) | Lost 11 allies 15944 | -6/Hub_04(d) | System corruption reached 10% 15966 | -6/Hub_04(d) | Entered Factory 15966 | -5/Factory | Evolved 2 slots: Propulsion x1, Utility x1 15999 | -5/Factory | Discovered new exit (range 7) 16061 | -5/Factory | Discovered new exit (range 34) 17052 | -5/Factory | Discovered new exit (range 10) 17173 | -5/Factory | Cargo convoy interrupted 17173 | -5/Factory | Entered Upper Caves 17281 | -5/Upper Caves | Attracted the attention of an 0b10 outpost 17659 | -5/Upper Caves | Discovered new exit (range 8) 17690 | -5/Upper Caves | Learned Factory emergency access door positions 17791 | -5/Upper Caves | Entered another Upper Caves area 17791 | -5/Upper Caves | Accompanied by 1 ally 18087 | -5/Upper Caves | Discovered new exit (range 10) 18187 | -5/Upper Caves | Entered Zhirov 18187 | -5/Zhirov | Accompanied by 1 ally 18187 | -5/Zhirov | Discovered new exit (range 3) 18216 | -5/Zhirov | Met Zhirov 18277 | -5/Zhirov | Learned location of Quarantine (-2) 18277 | -5/Zhirov | Learned location of Testing (-3) 18277 | -5/Zhirov | Learned location of Command (-1) 18293 | -5/Zhirov | Zhirov requested help retrieving the SGEMP Prototype 18327 | -5/Zhirov | Found Alien Artifact 18327 | -5/Zhirov | Identified Integrated Reactor 18327 | -5/Zhirov | Installed Integrated Reactor, increased core energy generation (+10) 18350 | -5/Zhirov | Found Alien Artifact 18350 | -5/Zhirov | Identified Transdimensional Reconstructor 18350 | -5/Zhirov | Warped through subspace 18691 | -5/Zhirov | Entered Proximity Caves 18691 | -4/Proximity Caves | Accompanied by 1 ally 18700 | -4/Proximity Caves | Learned Research terminal intel 18897 | -4/Proximity Caves | Received a Behemoth hack from an annoying Tinkerer 19392 | -4/Proximity Caves | Spotted B-86 Titan 19411 | -4/Proximity Caves | Attracted the attention of an 0b10 outpost 19451 | -4/Proximity Caves | Destroyed 9 combat bots 19571 | -4/Proximity Caves | Destroyed B-86 Titan 19920 | -4/Proximity Caves | Discovered new exit (range 15) 19947 | -4/Proximity Caves | Entered Factory 19947 | -4/Factory | Accompanied by 1 ally 19947 | -4/Factory | Evolved 2 slots: Propulsion x1, Utility x1 20133 | -4/Factory | Repaired Broken Adv. KE Penetrator? 20243 | -4/Factory | Discovered new exit (range 7) 20341 | -4/Factory | Zion Light squad teleported in 20399 | -4/Factory | Lost 3 allies 20519 | -4/Factory | Retrieved Zion intel report: Prototype Stockpiles 20520 | -4/Factory | Zion Hacker squad teleported in 20541 | -4/Factory | Lost 5 parts (2n3u) 20556 | -4/Factory | Discovered new exit (range 15) 20559 | -4/Factory | Fabricated Lgt. Fission Core? 20561 | -4/Factory | Identified exit to Research 20739 | -4/Factory | First assault squad dispatched 20746 | -4/Factory | Retrieved Zion intel report: Depthwide Sectors/0 20751 | -4/Factory | Zion Light squad teleported in 20842 | -4/Factory | Entered Research 20842 | -3/Research | Evolved 2 slots: Propulsion x1, Weapon x1 20843 | -3/Research | Identified exit to Armory 20844 | -3/Research | Loaded intel: 21 terminal locations 21057 | -3/Research | Discovered new exit (range 4) 21059 | -3/Research | Identified exit to Research 21102 | -3/Research | Found Prototype Device 21102 | -3/Research | Identified Exp. EM Disruption Field 21118 | -3/Research | Search patrols dispatched 21200 | -3/Research | Entered Armory 21310 | -3/Armory | Fabricated Lgt. Quantum Reactor? 21450 | -3/Armory | First assault squad dispatched 21556 | -3/Armory | Lost 3 allies 21568 | -3/Armory | Fabricated Fusion Reactor? 21584 | -3/Armory | Zion Light squad teleported in 21644 | -3/Armory | Zion Light squad teleported in 21676 | -3/Armory | Zion Hacker squad teleported in 21694 | -3/Armory | Found Prototype Launcher 21694 | -3/Armory | Identified Adv. Micro-nuke Launcher 21698 | -3/Armory | Spotted B-86 Titan 21717 | -3/Armory | Zion Demo squad teleported in 21728 | -3/Armory | Lost 4 allies 21821 | -3/Armory | Discovered exit to Research (range 4) 21828 | -3/Armory | Discovered new exit (range 2) 21829 | -3/Armory | Entered Lab 21840 | -3/Lab | Discovered exit to Research (range 9) 21845 | -3/Lab | Unable to decrypt terminal 21845 | -3/Lab | Opened the door to a hidden lab 21846 | -3/Lab | Gained access to the hidden lab's interior 21847 | -3/Lab | Detected by scanners 21847 | -3/Lab | Unable to decrypt terminal 21852 | -3/Lab | Found Alien Artifact 21852 | -3/Lab | Identified Core Reset Matrix 21852 | -3/Lab | Used Core Reset Matrix 21856 | -3/Lab | Confronted by A5 21856 | -3/Lab | Sensed 3 artifacts in vicinity 21859 | -3/Lab | Lost 11 parts (1p3n5u2w) 21892 | -3/Lab | Found Transdimensional Reconstructor 21892 | -3/Lab | Warped through subspace 21896 | -3/Lab | Found Prototype Energy Cannon 21899 | -3/Lab | Found Prototype Energy Gun 21902 | -3/Lab | Found Prototype Device 21905 | -3/Lab | Found Prototype Hackware 21933 | -3/Lab | Discovered exit to Research (range 8) 21943 | -3/Lab | Found Prototype Special Weapon 21943 | -3/Lab | Identified Gui. Remote Datajack 21962 | -3/Lab | Found Core Expander 21962 | -3/Lab | Installed Core Expander, added new Power slot 21971 | -3/Lab | Found Integrated Dissipator 21971 | -3/Lab | Installed Integrated Dissipator, increased core heat dissipation (+20) 22006 | -3/Lab | Entered Research 22006 | -2/Research | Evolved 2 slots: Propulsion x1, Utility x1 22016 | -2/Research | Zion Melee Resupply teleported in 22017 | -2/Research | Lost 4 parts (1p2n1u) 22023 | -2/Research | Identified AEGIS Remote Shield 22024 | -2/Research | Found Prototype Processor 22106 | -2/Research | Spotted B-90 Cyclops 22246 | -2/Research | Build established: Alien-Mutant 22355 | -2/Research | Identified Exp. Melee Analysis Suite 22358 | -2/Research | Identified Hyp. EM Gauss Rifle 22456 | -2/Research | Identified Quantum Router 22510 | -2/Research | Garrison activated, responded to threat 22542 | -2/Research | Local machine network offline 22863 | -2/Research | Found Prototype Device 22863 | -2/Research | Identified Exp. Focal Shield 22866 | -2/Research | Spotted B-90 Cyclops 22977 | -2/Research | Intercept squad dispatched 22977 | -2/Research | Destroyed 11 combat bots 22983 | -2/Research | Found Prototype Launcher 22983 | -2/Research | Identified Gui. Micro-nuke Launcher 22983 | -2/Research | Spotted Tracker 22983 | -2/Research | Spotted Tracker 22987 | -2/Research | Discovered new exit (range 12) 22990 | -2/Research | Destroyed Tracker 22990 | -2/Research | Spotted Combat Programmer 22993 | -2/Research | Destroyed Tracker 22999 | -2/Research | Garrison activated, responded to threat 23022 | -2/Research | Destroyed 8 combat bots 23048 | -2/Research | First assault squad dispatched 23050 | -2/Research | Spotted Combat Programmer 23055 | -2/Research | System corruption reached 10% 23081 | -2/Research | Entered Access 23081 | -1/Access | Evolved 2 slots: Propulsion x1, Utility x1 23090 | -1/Access | Identified Potential Cannon 23109 | -1/Access | Lost 19 parts (4p8n5u2w) 23125 | -1/Access | Found Unknown Launcher 23235 | -1/Access | Build established: Hacker-Mutant 23267 | -1/Access | Lost 6 parts (2p3u1w) 23320 | -1/Access | Found Prototype Device 23320 | -1/Access | Identified Beam Splitter 23370 | -1/Access | Core integrity fell below 50% 23379 | -1/Access | System corruption reached 10% 23391 | -1/Access | Identified Fusion Bomb Launcher 23404 | -1/Access | Lost 13 parts (1p6n5u1w) 23414 | -1/Access | Emitted hypermatrix ping 23417 | -1/Access | Destroyed 8 combat bots 23419 | -1/Access | Assembled emerged from beneath the floor 23443 | -1/Access | Lost 4 parts (3n1u) 23474 | -1/Access | Discovered new exit (range 7) 23477 | -1/Access | Entered Command 23478 | -1/Command | Emitted hypermatrix ping 23483 | -1/Command | Assembled emerged from beneath the floor 23497 | -1/Command | Assembled emerged from beneath the floor 23643 | -1/Command | Assembled emerged from beneath the floor 23727 | -1/Command | First assault squad dispatched 23733 | -1/Command | Lost 8 allies 23797 | -1/Command | Lost 5 allies 23819 | -1/Command | Core integrity fell below 20% 23858 | -1/Command | Lost 7 parts (1p3n3u) 23859 | -1/Command | Assembled emerged from beneath the floor 23877 | -1/Command | Spotted Alpha 7 23877 | -1/Command | Spotted Alpha 7 23877 | -1/Command | Spotted Striker 23877 | -1/Command | Spotted Striker 23877 | -1/Command | Spotted Executioner 23877 | -1/Command | Spotted Executioner 23877 | -1/Command | Spotted Executioner 23877 | -1/Command | Spotted Executioner 23878 | -1/Command | Spotted B-99 Colossus 23880 | -1/Command | Spotted B-99 Colossus 23902 | -1/Command | Destroyed by S-43 Plague with Heavy Machine Gun Last Messages --------------- 23884_ Field strength at 37. 23884_ Penetrated by Slug. 23885_ Imp. Targeting Computer destroyed. 23885_ Critical hit (Blast). 23887_ Slug penetrates Wall. 23888_ System corrupted: EM Disruption Field rejected. 23889_ Slug penetrates Alpha 7. 23890_ Slug penetrates as-68851. 23890_ as-68851 destroyed. 23893_ C-30 ARC bursts open, deploying its payload. 23893_ S-43 Plague unfolds itself. 23894_ Adv. Medium Treads destroyed. 23896_ Machine disabled. 23896_ Cave Seal Controls disabled. 23896_ S-43 Plague destroyed. 23898_ Terminal disabled. 23898_ Destroyed Lgt. Antimatter Reactor. 23898_ Destroyed Unknown Flight Unit. 23902_ Knocked back. [Achievement: I Think I Know What's Going On] Map ----- +----------------------------------------------------+ | ?????????????????????????????# #???????????????? | | ?????????????????????????????# #???????????????? | | ?????????????????????????????# #???????????????? | | ?????????????????????????????# #/############????? | | ?????????????????????????????# # ###??? | | ?????????????????????????????# # + ???? | | ????????????????????????????? + = #????? | | ?????????????????????????????#?# #????? | | ???????????????????????????????# #????? | | ???????????????????????????????# "" #????? | | ??????????????????????? ???# """" #????? | | ????????????????????? #?# """" #????? | | ??????????????????? #?# "" / #????? | | ??????????????????? ### !] #????? | | ???????????????????# ?# ! #????? | | ??????????????????## s ?# [ #????? | | ??????????????????? [ #########+######????? | | ???????????????????# #????????? | | ???????????????????? ### #????????? | | ????????????????????? ; #????????? | | ????????????????????## # #????????? | | ????????????????????# " # #????????? | | ????????????????????# " # #????????? | | ????????????????????# """ # #????????? | | ????????????????## ## ?# +????????? | | ????????????????# @ #????# #????????? | | ????????????????# #????# #????????? | | ????????????????# #????# #????????? | | ????????????????# ##????# #????????? | | ????????????????## #### #?????# #????##### | | ????????????????# ????# ##?????# #?### # # | | ??????????????????????# K######## %### | | ??????????????????????# % " *^ | | ??????????????????????# ! ###### " | | ??????????????????????# #????# "%^ % | | ??????????????????????# #????#% /%^ | | ??????????????????????# #????###"#### ^ | | ??????????????????????# #????? ?### # # | | ??????????????????????# #??? #???####? | | ??????????????????????###### #?# ! #???????? | | ???????????????????????????# #?# #???????? | | ???????????????????????????# #?# #???????? | | ???????????????????????????# #?# [#???????? | | ???????????????????????????# #?# #???????? | | ??????????????????????????? ?#[ #???????? | | ??????????????????????????? ?# ! #???????? | | ??????????????????????????? ?##########???????? | | ??????????????????????????? ??????????????????? | | ???????????????????????????#+##??????????????????? | | ?????????????????????????????????????????????????? | +----------------------------------------------------+ Best States ------------- Heat Dissipation 98 Energy Generation 75 Energy Capacity 980 Matter Stores 300 Matter Capacity 300 Sight Range 16 Robot Scan Range 16 Terrain Scan Range 20 Terrain Scan Density 10 Jamming Range 16 Cloak Strength 4 Power Amplification 30 EM Shielding 4 Armor Coverage 1650 Resistance: KI 30 Resistance: TH 30 Resistance: EX 50 Resistance: EM 75 Propulsion Shielding 90 Weapon Shielding 100 Phase Shifting 10 Evasion (%) 68 Targeting Accuracy 12 Melee Accuracy 6 Target Analysis 8 Recoil Reduction 6 Particle Charging 30 Kinecelleration 40 Salvage Targeting 4 Offensive Hacking 12 Defensive Hacking 35 Item Schematics ----------------- None Robot Schematics ------------------ None Fabricated ------------ Lgt. Fission Core | x2 | -4/Factory Lgt. Quantum Reactor | x2 | -3/Armory | Preloaded Fusion Reactor | x1 | -3/Armory Alien Tech Used ----------------- Integrated Reactor Transdimensional Reconstructor Core Reset Matrix Core Expander Integrated Dissipator Achievements -------------- Anyone Home? Beloved Friend Of Zion I Think I Know What's Going On More Power To You Subspace Traveler The Science Guy Challenges ------------ None Game ------ Seed ThunderDisruptorShearcannon Manual? 0 Play Time 09:33:09 Cumulative 137.8 hours Start 2024.07.21 @ 05:43:00 End 2024.07.23 @ 02:03:43 Sessions 3 Manual Loads 0 Difficulty Rogue Special Mode None Game No. 40 Rogue 40 Adventurer 0 Explorer 0 Win Type - Total 1 Types 1/0/0/0/0/0/0/0/0 Lore% 53 Gallery% 58 Achievement% 45 Wizard Run 0 Options --------- Layout 0 ASCII 0 Keyboard 1 Movement Numpad Keybinds 0 Fullscreen 1 Font 18/X11Bold Map View 76x50 Zoom Use 0% Tactical HUD 1 Map Filters NONE Filters NONE Steam 1 RUN: 40ab303e-fc2e-4a11-923c-a70209f79643